fUST/lending_fUST_20250302
["ID","MTS","AMOUNT","RATE_DAILY","PERIOD"]
[355123668,1740928040497,-610.58843751,0.00019954,2]
[355123669,1740928040525,-610.58843751,0.00019954,2]
[355123670,1740928040552,-610.58843751,0.00019954,2]
[355123671,1740928040579,-610.58843751,0.00019954,2]
[355123672,1740928040607,-610.58843751,0.00019954,2]
[355123673,1740928040634,-610.58843751,0.00019954,2]
[355123674,1740928040662,-610.58843751,0.00019954,2]
[355123675,1740928040689,-610.58843751,0.00019954,2]
[355123676,1740928040718,-610.58843751,0.00019954,2]
[355123677,1740928040746,-610.58843751,0.00019954,2]
[355123678,1740928040775,-625.4038531,0.00019954,2]
[355123679,1740928040802,-625.4038531,0.00019954,2]
[355123680,1740928040829,-625.4038531,0.00019954,2]
[355123681,1740928040857,-625.4038531,0.00019954,2]
[355123682,1740928040885,-625.4038531,0.00019954,2]
[355123683,1740928040912,-625.4038531,0.00019954,2]
[355123684,1740928040939,-625.4038531,0.00019954,2]
[355123685,1740928040968,-625.4038531,0.00019954,2]
[355123686,1740928040995,-625.4038531,0.00019954,2]
[355123687,1740928041028,-625.4038531,0.00019954,2]
[355123688,1740928041056,-625.4038531,0.00019954,2]
[355123689,1740928041084,-625.4038531,0.00019954,2]
[355123690,1740928041112,-625.4038531,0.00019954,2]
[355123691,1740928041141,-625.4038531,0.00019954,2]
[355123692,1740928041169,-625.4038531,0.00019954,2]
[355123693,1740928041198,-625.4038531,0.00019954,2]
[355123694,1740928041226,-625.4038531,0.00019954,2]
[355123695,1740928041257,-625.4038531,0.00019954,2]
[355123696,1740928041284,-625.4038531,0.00019954,2]
[355123697,1740928041311,-625.4038531,0.00019954,2]
[355123698,1740928041339,-625.4038531,0.00019954,2]
[355123699,1740928041361,-24557.08285178,0.00019955,2]
[355123700,1740928041383,-2999.02432276,0.00020459,2]
[355123701,1740928041405,-500.0,0.00020514,2]
[355123702,1740928041428,-500.0,0.00020514,2]
[355123703,1740928041450,-500.0,0.00020514,2]
[355123704,1740928041474,-500.0,0.00020514,2]
[355123705,1740928041496,-500.0,0.00020514,2]
[355123706,1740928041517,-500.0,0.00020514,2]
[355123707,1740928041539,-500.0,0.00020558,2]
[355123708,1740928041560,-485.71819956,0.00020558,2]
[355123709,1740928041581,-500.0,0.000206,2]
[355123710,1740928041603,-500.0,0.000206,2]
[355123711,1740928041627,-181.07792,0.00021258,2]
[355123712,1740928041648,-155.0127996,0.000214,2]
[355123713,1740928041671,-179.4323548,0.00021478,2]
[355123714,1740928041693,-420.0,0.00021727,2]
[355123715,1740928041716,-297.0,0.00021763,2]
[355123716,1740928041894,-150.0,0.00021763,2]
[355123717,1740928041917,-397.0,0.00021763,2]
[355123718,1740928041940,-218903.27268531,0.00021817,2]
[355123719,1740928042034,-3096.72731469,0.00021817,2]
[355123720,1740928042056,-200.0,0.00021904,2]
[355123721,1740928042079,-220.0,0.00021904,2]
[355123722,1740928042100,-242.0,0.00021904,2]
[355123723,1740928042122,-371.73316092,0.00021904,2]
[355123724,1740928042144,-151.0,0.00021916,2]
[355123725,1740928042166,-274.65,0.00021917,2]
[355123726,1740928042188,-500.0,0.00021917,2]
[355123727,1740928042212,-500.0,0.00021917,2]
[355123728,1740928042235,-500.0,0.00021917,2]
[355123729,1740928042257,-97.52209958,0.00021917,2]
[355123732,1740928151128,-380.33397421,0.000188,2]
[355123733,1740928151151,-1484.05586342,0.00019717,2]
[355123734,1740928151174,-6015.1560358,0.0001973,2]
[355123735,1740928151197,-300.0,0.00019899,2]
[355123736,1740928151220,-37880.71846582,0.000199,2]
[355123737,1740928155111,-71110.95979407,0.000199,2]
[355123738,1740928155138,-500.0,0.00019953,2]
[355123739,1740928155165,-500.0,0.00019953,2]
[355123740,1740928155191,-500.0,0.00019953,2]
[355123741,1740928155216,-500.0,0.00019953,2]
[355123742,1740928155242,-500.0,0.00019953,2]
[355123743,1740928155268,-500.0,0.00019953,2]
[355123744,1740928155295,-500.0,0.00019953,2]
[355123745,1740928155319,-500.0,0.00019953,2]
[355123746,1740928155346,-500.0,0.00019953,2]
[355123747,1740928155372,-500.0,0.00019953,2]
[355123748,1740928155398,-500.0,0.00019953,2]
[355123749,1740928155423,-500.0,0.00019953,2]
[355123750,1740928155449,-500.0,0.00019953,2]
[355123751,1740928155475,-360.99598654,0.00019953,2]
[355123752,1740928155501,-500.0,0.00019953,2]
[355123753,1740928155527,-500.0,0.00019953,2]
[355123754,1740928155556,-500.0,0.00019953,2]
[355123755,1740928155584,-500.0,0.00019953,2]
[355123756,1740928155613,-500.0,0.00019953,2]
[355123757,1740928155643,-500.0,0.00019953,2]
[355123758,1740928155674,-500.0,0.00019953,2]
[355123759,1740928155706,-500.0,0.00019953,2]
[355123760,1740928155731,-271.27184432,0.00019953,2]
[355123761,1740928155760,-500.0,0.00019953,2]
[355123762,1740928155789,-500.0,0.00019953,2]
[355123763,1740928155821,-500.0,0.00019953,2]
[355123764,1740928155848,-500.0,0.00019953,2]
[355123765,1740928155875,-500.0,0.00019953,2]
[355123766,1740928155904,-261.08294937,0.00019953,2]
[355123767,1740928170115,-238.91705063,0.00019953,2]
[355123768,1740928170142,-500.0,0.00019953,2]
[355123769,1740928170169,-500.0,0.00019953,2]
[355123770,1740928170195,-500.0,0.00019953,2]
[355123771,1740928170221,-500.0,0.00019953,2]
[355123772,1740928170247,-500.0,0.00019953,2]
[355123773,1740928170274,-500.0,0.00019953,2]
[355123774,1740928170301,-500.0,0.00019953,2]
[355123775,1740928170330,-500.0,0.00019953,2]
[355123776,1740928170357,-500.0,0.00019953,2]
[355123777,1740928170384,-500.0,0.00019953,2]
[355123778,1740928170411,-500.0,0.00019953,2]
[355123779,1740928170438,-500.0,0.00019953,2]
[355123780,1740928170466,-500.0,0.00019953,2]
[355123781,1740928170493,-500.0,0.00019953,2]
[355123783,1740928170520,-500.0,0.00019953,2]
[355123784,1740928170550,-500.0,0.00019953,2]
[355123786,1740928170578,-500.0,0.00019953,2]
[355123787,1740928170605,-500.0,0.00019953,2]
[355123789,1740928170635,-429.70593058,0.00019953,2]
[355123790,1740928170663,-500.0,0.00019953,2]
[355123792,1740928170690,-500.0,0.00019953,2]
[355123793,1740928170719,-500.0,0.00019953,2]
[355123795,1740928170744,-500.0,0.00019953,2]
[355123796,1740928170771,-500.0,0.00019953,2]
[355123797,1740928170796,-500.0,0.00019953,2]
[355123798,1740928170821,-500.0,0.00019953,2]
[355123799,1740928170846,-500.0,0.00019953,2]
[355123800,1740928170871,-104.36757879,0.00019953,2]
[355123838,1740928232721,-300.0,0.00019952,2]
[355123840,1740928232732,-1410.258965,0.00020791,2]
[355123841,1740928232743,-179.4323548,0.00021478,2]
[355123843,1740928232752,-500.0,0.00021716,2]
[355123845,1740928232762,-190.0027397,0.00021716,2]
[355123847,1740928232772,-500.0,0.00021716,2]
[355123849,1740928232783,-500.0,0.00021716,2]
[355123851,1740928232792,-500.0,0.00021716,2]
[355123852,1740928232803,-500.0,0.00021716,2]
[355123853,1740928232812,-40364.48331537,0.00021717,2]
[355123857,1740928233089,-44.06960303,0.00021717,2]
[355123858,1740928233101,-654.86091982,0.00021717,2]
[355123860,1740928233131,-500.0,0.00021716,2]
[355123861,1740928233140,-450.5717091,0.00021717,2]
[355123952,1740928238992,-500.0,0.00021716,2]
[355123954,1740928239002,-500.0,0.00021716,2]
[355123956,1740928239011,-500.0,0.00021716,2]
[355123958,1740928239021,-500.0,0.00021716,2]
[355123960,1740928239031,-500.0,0.00021716,2]
[355123962,1740928239041,-500.0,0.00021716,2]
[355123964,1740928239051,-500.0,0.00021716,2]
[355123966,1740928239062,-500.0,0.00021716,2]
[355123968,1740928239072,-385.13937081,0.00021716,2]
[355123970,1740928239081,-500.0,0.00021716,2]
[355123972,1740928239091,-500.0,0.00021716,2]
[355123974,1740928239101,-10913.93001936,0.00021717,2]
[355123994,1740928239483,-79.96382112,0.00021717,2]
[355123995,1740928239506,-114705.25749177,0.00021717,2]
[355124004,1740928240722,-384.47543081,0.00021717,2]
[355124142,1740928244262,-125.18984826,0.00021717,2]
[355124424,1740928247315,-33773.54169861,0.00021717,2]
[355124425,1740928247422,-156.70193542,0.00021717,2]
[355124444,1740929135148,-989.37057562,0.00019617,2]
[355124445,1740929135177,-37.31324872,0.00019973,2]
[355124452,1740929229136,-300.0,0.00019466,2]
[355124453,1740929229168,-500.0,0.00019467,2]
[355124454,1740929229205,-500.0,0.00019467,2]
[355124455,1740929229235,-500.0,0.00019467,2]
[355124456,1740929229275,-500.0,0.00019467,2]
[355124457,1740929229319,-500.0,0.00019467,2]
[355124458,1740929229356,-500.0,0.00019467,2]
[355124459,1740929229394,-500.0,0.00019467,2]
[355124460,1740929229433,-500.0,0.00019467,2]
[355124461,1740929229470,-500.0,0.00019467,2]
[355124462,1740929229510,-500.0,0.00019467,2]
[355124463,1740929229548,-500.0,0.00019467,2]
[355124464,1740929229586,-500.0,0.00019467,2]
[355124465,1740929229622,-500.0,0.00019467,2]
[355124466,1740929229658,-490.0,0.00019467,2]
[355124467,1740929229698,-500.0,0.00019467,2]
[355124468,1740929229734,-500.0,0.00019467,2]
[355124469,1740929229774,-500.0,0.00019467,2]
[355124470,1740929229808,-500.0,0.00019467,2]
[355124471,1740929229843,-500.0,0.00019467,2]
[355124472,1740929229877,-500.0,0.00019467,2]
[355124473,1740929229911,-80.66547644,0.00019467,2]
[355124477,1740929244101,-419.33452356,0.00019467,2]
[355124478,1740929244134,-430.07145313,0.00019467,2]
[355124484,1740929351096,-235.0372506,0.00018,4]
[355124485,1740929351121,-659.58038374,0.000189,2]
[355124486,1740929351150,-300.0,0.00019465,2]
[355124487,1740929351185,-500.0,0.00019466,2]
[355124488,1740929351217,-500.0,0.00019466,2]
[355124489,1740929351247,-500.0,0.00019466,2]
[355124490,1740929351511,-500.0,0.00019466,2]
[355124491,1740929351545,-500.0,0.00019466,2]
[355124492,1740929351578,-500.0,0.00019466,2]
[355124493,1740929351610,-393.79859215,0.00019466,2]
[355124494,1740929351646,-500.0,0.00019466,2]
[355124495,1740929351678,-500.0,0.00019466,2]
[355124496,1740929351716,-500.0,0.00019466,2]
[355124497,1740929351748,-500.0,0.00019466,2]
[355124498,1740929351780,-500.0,0.00019466,2]
[355124499,1740929351813,-500.0,0.00019466,2]
[355124500,1740929351845,-500.0,0.00019466,2]
[355124501,1740929351875,-500.0,0.00019466,2]
[355124502,1740929351912,-500.0,0.00019466,2]
[355124503,1740929351946,-500.0,0.00019466,2]
[355124504,1740929351979,-386.76609965,0.00019466,2]
[355124505,1740929352012,-500.0,0.00019466,2]
[355124506,1740929352045,-500.0,0.00019466,2]
[355124507,1740929352078,-500.0,0.00019466,2]
[355124508,1740929352111,-500.0,0.00019466,2]
[355124509,1740929352146,-500.0,0.00019466,2]
[355124510,1740929352179,-500.0,0.00019466,2]
[355124511,1740929352212,-500.0,0.00019466,2]
[355124512,1740929352245,-500.0,0.00019466,2]
[355124513,1740929352276,-500.0,0.00019466,2]
[355124514,1740929352308,-500.0,0.00019466,2]
[355124515,1740929352340,-500.0,0.00019466,2]
[355124516,1740929352372,-500.0,0.00019466,2]
[355124517,1740929352412,-500.0,0.00019466,2]
[355124518,1740929352444,-500.0,0.00019466,2]
[355124519,1740929352478,-500.0,0.00019466,2]
[355124520,1740929352513,-500.0,0.00019466,2]
[355124521,1740929352546,-500.0,0.00019466,2]
[355124522,1740929352580,-500.0,0.00019466,2]
[355124523,1740929352613,-200.0,0.00019466,2]
[355124524,1740929352649,-500.0,0.00019466,2]
[355124525,1740929352683,-500.0,0.00019466,2]
[355124526,1740929352715,-500.0,0.00019466,2]
[355124527,1740929352747,-500.0,0.00019466,2]
[355124528,1740929352779,-500.0,0.00019466,2]
[355124529,1740929352813,-500.0,0.00019466,2]
[355124530,1740929352845,-500.0,0.00019466,2]
[355124531,1740929352884,-500.0,0.00019466,2]
[355124532,1740929352917,-500.0,0.00019466,2]
[355124533,1740929352942,-14906.99535731,0.00019468,2]
[355124534,1740929356140,-169.22748153,0.00019468,2]
[355124535,1740929358102,-9823.77716116,0.00019468,2]
[355124536,1740929358130,-2790.33562551,0.000196,2]
[355124537,1740929358162,-164.47939134,0.000197,2]
[355124538,1740929359125,-335.52060866,0.000197,2]
[355124539,1740929359155,-500.0,0.000197,2]
[355124540,1740929359184,-500.0,0.000197,2]
[355124541,1740929359209,-500.0,0.000197,2]
[355124542,1740929359234,-500.0,0.00019973,2]
[355124543,1740929359259,-360.38,0.0001999,3]
[355124544,1740929359285,-217.10017026,0.00019999,2]
[355124545,1740929359310,-500.0,0.00019999,2]
[355124546,1740929359335,-450.55443673,0.00019999,2]
[355124547,1740929359358,-15571.15579174,0.0002,2]
[355124548,1740929361106,-930.3932824,0.00019356,2]
[355124549,1740929363525,49.6067176,0.00019356,2]
[355124550,1740929370096,-524.2850604,0.00019356,2]
[355124551,1740929380565,192.85905201,0.00019466,2]
[355124552,1740929380601,227.35901875,0.00019466,2]
[355124586,1740929433129,-79.78192924,0.00019466,2]
[355124588,1740929433142,-500.0,0.00019466,2]
[355124590,1740929433153,-500.0,0.00019466,2]
[355124591,1740929433164,-300.0,0.00019999,2]
[355124592,1740929433175,-26419.49319048,0.0002,2]
[355124594,1740929433191,-4356.25372706,0.0002,2]
[355124599,1740929433243,-18776.5694042,0.0002,2]
[355124600,1740929433382,-1146.52788652,0.0002,2]
[355124601,1740929433393,-1845.9866971,0.00020546,2]
[355124602,1740929433404,-232.9912372,0.0002088,2]
[355124603,1740929433428,-623.08342661,0.00021,2]
[355124604,1740929433446,-3143.0124802,0.00021378,2]
[355124605,1740929433457,-179.4323549,0.00021478,2]
[355124606,1740929433468,-350.0,0.000215,2]
[355124607,1740929433479,-19574.61932315,0.00021617,2]
[355124628,1740929438746,-27579.56655708,0.00021617,2]
[355124629,1740929438880,-94.37844185,0.00021617,2]
[355124636,1740929439273,-114.07598048,0.00021617,2]
[355124706,1740929444929,-1511.84235253,0.00021617,2]
[355124707,1740929444942,-22632.63997331,0.00021617,2]
[355124778,1740929447196,-465.81427874,0.00021617,2]
[355124834,1740930428101,-10000.0,0.00018227,2]
[355124835,1740930428124,-300.0,0.00018601,2]
[355124836,1740930428146,-5000.0,0.00018602,2]
[355124837,1740930428168,-166.66666666,0.00018716,2]
[355124838,1740930428190,-1136.4703297,0.00018816,2]
[355124839,1740930428221,-1009.7746737,0.00018938,2]
[355124840,1740930428243,-500.0,0.00019084,2]
[355124841,1740930428268,-500.0,0.00019084,2]
[355124842,1740930428291,-441.44659891,0.00019084,2]
[355124843,1740930428315,-500.0,0.00019084,2]
[355124844,1740930428338,-1925.68157703,0.00019085,2]
[355124845,1740930428372,-692.48000627,0.00019085,2]
[355124848,1740930551141,-1545.686931,0.00018597,2]
[355124849,1740930551166,-5000.0,0.00018894,2]
[355124850,1740930551194,-3720.3002029,0.0001901,2]
[355124851,1740930551222,-500.0,0.00019084,2]
[355124852,1740930551249,-500.0,0.00019084,2]
[355124853,1740930551277,-500.0,0.00019084,2]
[355124854,1740930551304,-500.0,0.00019084,2]
[355124855,1740930551331,-500.0,0.00019084,2]
[355124856,1740930551357,-651.70917699,0.00019084,2]
[355124857,1740930551581,-22281.8384167,0.00019085,2]
[355124858,1740930551605,-2572.6139901,0.0001911,2]
[355124859,1740930551630,-817.77685711,0.00019366,2]
[355124860,1740930551656,-2335.97797078,0.00019517,2]
[355124861,1740930551686,-233.14629464,0.00019822,2]
[355124862,1740930555142,2434.239976,0.00019208,2]
[355124863,1740930567538,3493.0585492,0.000189,2]
[355124864,1740930587246,3934.5327365,0.00019208,2]
[355125052,1740930633279,-16.85370536,0.00019822,2]
[355125055,1740930633290,-413.01411345,0.00019843,2]
[355125058,1740930633303,-202.04154695,0.00019843,2]
[355125060,1740930633313,-100.25845305,0.0002,2]
[355125062,1740930633327,-215.01218313,0.0002,2]
[355125064,1740930633338,-300.0,0.00020032,2]
[355125066,1740930633349,-500.0,0.00020033,2]
[355125068,1740930633360,-500.0,0.00020033,2]
[355125070,1740930633370,-246.78707034,0.00020033,2]
[355125072,1740930633383,-11.75437165,0.00020033,2]
[355125074,1740930633395,-500.0,0.00020033,2]
[355125076,1740930633405,-4663.0996366,0.00020075,2]
[355125078,1740930633417,-500.0,0.0002015,2]
[355125080,1740930633427,-7824.2016752,0.00020359,2]
[355125082,1740930633439,-1914.2639527,0.00020425,2]
[355125084,1740930633450,-151.32038255,0.000212,2]
[355125086,1740930633461,-179.4323548,0.00021478,2]
[355125088,1740930633473,-400.0,0.0002158,2]
[355125090,1740930633486,-524.14,0.00021602,3]
[355125092,1740930633508,-500.0,0.00021611,2]
[355125094,1740930633520,-623.1875052,0.00021611,2]
[355125096,1740930633531,-17807.36141904,0.00021617,2]
[355125098,1740930633545,-2064.5055936,0.00021617,2]
[355125101,1740930633563,-2215.77737875,0.00021617,2]
[355125103,1740930633577,-62104.74540483,0.00021617,2]
[355125637,1740930639242,-350.18990855,0.00020423,2]
[355125639,1740930639257,-266.20684897,0.00020423,2]
[355125642,1740930639271,-350.01117175,0.00020423,2]
[355125644,1740930639281,-179.44382825,0.00020423,2]
[355125768,1740930640349,-1877.7307557,0.00020423,2]
[355125771,1740930640361,-1867.29265029,0.00020423,2]
[355125779,1740930640430,-189.88193366,0.00020423,2]
[355125781,1740930640440,-2057.17458395,0.00020423,2]
[355125783,1740930640451,-2057.17458395,0.00020423,2]
[355125785,1740930640461,-2057.17458395,0.00020423,2]
[355125787,1740930640471,-2057.17458395,0.00020423,2]
[355125789,1740930640481,-2057.17458395,0.00020423,2]
[355125791,1740930640492,-2057.17458395,0.00020423,2]
[355125793,1740930640502,-2057.17458395,0.00020423,2]
[355125795,1740930640522,-2057.17458395,0.00020423,2]
[355125797,1740930640532,-2057.17458395,0.00020423,2]
[355125799,1740930640544,-2057.17458395,0.00020423,2]
[355125801,1740930640554,-2057.17458395,0.00020423,2]
[355125803,1740930640565,-2057.17458395,0.00020423,2]
[355125806,1740930640575,-2057.17458395,0.00020423,2]
[355125810,1740930640585,-2057.17458395,0.00020423,2]
[355125812,1740930640595,-2057.17458395,0.00020423,2]
[355125814,1740930640606,-2057.17458395,0.00020423,2]
[355125816,1740930640616,-2057.17458395,0.00020423,2]
[355125818,1740930640626,-436.91143693,0.00020423,2]
[355125821,1740930640647,-503.19826866,0.00020423,2]
[355125823,1740930640659,-1117.06487836,0.00020423,2]
[355125825,1740930640669,-164.96920364,0.00020423,2]
[355126204,1740930644025,-1892.20538031,0.00020423,2]
[355126206,1740930644036,-2057.17458395,0.00020423,2]
[355126208,1740930644047,-2057.17458395,0.00020423,2]
[355126210,1740930644057,-2057.17458395,0.00020423,2]
[355126212,1740930644067,-2057.17458395,0.00020423,2]
[355126214,1740930644078,-2057.17458395,0.00020423,2]
[355126216,1740930644088,-2057.17458395,0.00020423,2]
[355126218,1740930644098,-2057.17458395,0.00020423,2]
[355126220,1740930644108,-2057.17458395,0.00020423,2]
[355126222,1740930644118,-24975.32599809,0.00021617,2]
[355126224,1740930644131,-2200.41411122,0.00021617,2]
[355126227,1740930644143,-920.82910143,0.00021617,2]
[355126228,1740930644176,-37738.1040859,0.00021617,2]
[355126229,1740930644186,-500.0,0.00021673,2]
[355126230,1740930644198,-500.0,0.00021673,2]
[355126231,1740930644210,-500.0,0.00021673,2]
[355126232,1740930644220,-500.0,0.00021673,2]
[355126233,1740930644231,-500.0,0.00021673,2]
[355126235,1740930644241,-500.0,0.00021673,2]
[355126237,1740930644251,-500.0,0.00021673,2]
[355126238,1740930644263,-500.0,0.00021673,2]
[355126239,1740930644273,-500.0,0.00021673,2]
[355126240,1740930644284,-500.0,0.00021673,2]
[355126241,1740930644294,-500.0,0.00021673,2]
[355126242,1740930644306,-500.0,0.00021673,2]
[355126243,1740930644316,-420.0,0.00021812,2]
[355126244,1740930644327,-3000.0,0.00021817,2]
[355126245,1740930644337,-2570.81080677,0.00021817,2]
[355126246,1740930644347,-297.0,0.00021817,2]
[355126247,1740930644357,-150.0,0.00021817,2]
[355126248,1740930644368,-397.0,0.00021817,2]
[355126249,1740930644378,-151.0,0.00021916,2]
[355126250,1740930644387,-500.0,0.00021917,2]
[355126251,1740930644398,-601.76147562,0.00021917,2]
[355126252,1740930644408,-500.0,0.00021917,2]
[355126253,1740930644418,-500.0,0.00021917,2]
[355126254,1740930644428,-500.0,0.00021917,2]
[355126255,1740930644438,-500.0,0.00021917,2]
[355126256,1740930644448,-500.0,0.00021917,2]
[355126257,1740930644458,-250.0,0.00021917,2]
[355126258,1740930644468,-500.0,0.00021917,2]
[355126260,1740930644478,-500.0,0.00021917,2]
[355126261,1740930644488,-500.0,0.00021917,2]
[355126263,1740930644499,-500.0,0.00021917,2]
[355126264,1740930644513,-500.0,0.00021917,2]
[355126266,1740930644526,-500.0,0.00021917,2]
[355126268,1740930644537,-500.0,0.00021917,2]
[355126269,1740930644547,-500.0,0.00021917,2]
[355126270,1740930644557,-500.0,0.00021917,2]
[355126271,1740930644567,-500.0,0.00021917,2]
[355126272,1740930644577,-563.17698584,0.00021917,2]
[355126273,1740930644588,-500.0,0.00021917,2]
[355126274,1740930644598,-500.0,0.00021917,2]
[355126275,1740930644609,-500.0,0.00021917,2]
[355126276,1740930644619,-500.0,0.00021917,2]
[355126277,1740930644630,-500.0,0.00021917,2]
[355126278,1740930644641,-500.0,0.00021917,2]
[355126279,1740930644651,-500.0,0.00021917,2]
[355126280,1740930644663,-501.94965314,0.00021917,2]
[355126281,1740930644673,-500.0,0.00021917,2]
[355126282,1740930644683,-500.0,0.00021917,2]
[355126283,1740930644694,-500.0,0.00021917,2]
[355126284,1740930644704,-500.0,0.00021917,2]
[355126285,1740930644714,-502.61872391,0.00021917,2]
[355126286,1740930644724,-500.0,0.00021917,2]
[355126287,1740930644734,-500.0,0.00021917,2]
[355126288,1740930644745,-500.0,0.00021917,2]
[355126289,1740930644756,-500.0,0.00021917,2]
[355126290,1740930644774,-500.0,0.00021917,2]
[355126291,1740930644784,-500.0,0.00021917,2]
[355126292,1740930644794,-500.0,0.00021917,2]
[355126293,1740930644804,-500.0,0.00021917,2]
[355126294,1740930644815,-500.0,0.00021917,2]
[355126295,1740930644825,-500.0,0.00021917,2]
[355126296,1740930644835,-509.33267781,0.00021917,2]
[355126297,1740930644847,-500.0,0.00021917,2]
[355126298,1740930644858,-500.0,0.00021917,2]
[355126299,1740930644868,-500.0,0.00021917,2]
[355126300,1740930644878,-500.0,0.00021917,2]
[355126301,1740930644888,-500.0,0.00021917,2]
[355126302,1740930644939,-500.0,0.00021917,2]
[355126303,1740930644950,-500.0,0.00021917,2]
[355126304,1740930644960,-500.0,0.00021917,2]
[355126305,1740930644971,-503.01077724,0.00021917,2]
[355126306,1740930644981,-592.94723038,0.00021917,2]
[355126307,1740930644990,-500.0,0.00021917,2]
[355126308,1740930645001,-500.0,0.00021917,2]
[355126309,1740930645017,-500.0,0.00021917,2]
[355126310,1740930645027,-500.0,0.00021917,2]
[355126311,1740930645038,-500.0,0.00021917,2]
[355126312,1740930645050,-500.0,0.00021917,2]
[355126314,1740930645061,-500.0,0.00021917,2]
[355126316,1740930645072,-500.25457793,0.00021917,2]
[355126318,1740930645082,-500.0,0.00021917,2]
[355126320,1740930645092,-500.0,0.00021917,2]
[355126322,1740930645101,-339.29053433,0.00021917,2]
[355126324,1740930645110,-500.0,0.00021917,2]
[355126326,1740930645121,-500.0,0.00021917,2]
[355126328,1740930645131,-500.0,0.00021917,2]
[355126330,1740930645141,-500.0,0.00021917,2]
[355126332,1740930645151,-500.0,0.00021917,2]
[355126334,1740930645161,-500.0,0.00021917,2]
[355126336,1740930645171,-500.0,0.00021917,2]
[355126337,1740930645182,-500.0,0.00021917,2]
[355126339,1740930645192,-500.0,0.00021917,2]
[355126341,1740930645202,-500.0,0.00021917,2]
[355126343,1740930645212,-500.0,0.00021917,2]
[355126345,1740930645222,-500.0,0.00021917,2]
[355126346,1740930645232,-514.92472943,0.00021917,2]
[355126348,1740930645242,-500.0,0.00021917,2]
[355126349,1740930645252,-500.0,0.00021917,2]
[355126351,1740930645267,-500.0,0.00021917,2]
[355126352,1740930645277,-402.47790042,0.00021917,2]
[355126354,1740930645287,-500.0,0.00021917,2]
[355126355,1740930645297,-500.0,0.00021917,2]
[355126357,1740930645307,-500.0,0.00021917,2]
[355126358,1740930645317,-500.0,0.00021917,2]
[355126360,1740930645327,-500.0,0.00021917,2]
[355126361,1740930645337,-500.0,0.00021917,2]
[355126363,1740930645347,-500.0,0.00021917,2]
[355126364,1740930645356,-500.0,0.00021917,2]
[355126367,1740930645366,-594.4,0.00021917,2]
[355126368,1740930645376,-500.0,0.00021917,2]
[355126370,1740930645386,-500.0,0.00021917,2]
[355126371,1740930645395,-556.9,0.00021917,2]
[355126373,1740930645409,-500.0,0.00021917,2]
[355126375,1740930645419,-500.0,0.00021917,2]
[355126376,1740930645429,-500.0,0.00021917,2]
[355126378,1740930645439,-500.0,0.00021917,2]
[355126379,1740930645449,-500.0,0.00021917,2]
[355126381,1740930645459,-500.0,0.00021917,2]
[355126382,1740930645469,-507.1778751,0.00021917,2]
[355126384,1740930645479,-500.0,0.00021917,2]
[355126385,1740930645490,-500.0,0.00021917,2]
[355126387,1740930645502,-528.83045643,0.00021917,2]
[355126389,1740930645516,-500.0,0.00021917,2]
[355126391,1740930645526,-151.0,0.00021917,2]
[355126392,1740930645538,-500.0,0.00021917,2]
[355126393,1740930645548,-384.38228529,0.00021917,2]
[355126395,1740930645557,-500.0,0.00021917,2]
[355126398,1740930645567,-500.0,0.00021917,2]
[355126401,1740930645577,-1230.54,0.00021917,2]
[355126403,1740930645587,-500.0,0.00021917,2]
[355126405,1740930645598,-500.0,0.00021917,2]